bitfinex/quotes_BTCUSD_20241119
["timestamp","ask_amount","ask_price","bid_price","bid_amount"]
[1732055059661,0.108756,91949.0,91944.0,0.032628]
[1732055060283,0.10906255,91959.0,91943.0,0.032628]
[1732055060485,0.108755,91950.0,91945.0,0.032628]
[1732055061147,0.217504,91953.0,91943.0,0.032628]
[1732055061297,0.217504,91953.0,91943.0,0.065256]
[1732055061738,0.108757,91948.0,91943.0,0.065256]
[1732055062162,0.217507,91951.0,91933.0,0.032632]
[1732055062163,0.217507,91951.0,91941.0,0.032629]
[1732055062374,0.108757,91948.0,91943.0,0.032628]
[1732055062783,0.10906255,91956.0,91925.0,0.10906255]
[1732055062784,0.217497,91955.0,91930.0,0.032633]
[1732055062994,0.108761,91944.0,91939.0,0.032629]
[1732055063224,0.108756,91949.0,91931.0,0.097899]
[1732055063435,0.10906255,91956.0,91943.0,0.032628]
[1732055063663,0.10906255,91956.0,91943.0,0.065256]
[1732055063664,0.108757,91948.0,91943.0,0.065256]
[1732055063870,0.108757,91948.0,91944.0,0.032628]
[1732055064072,0.108757,91948.0,91941.0,0.032629]
[1732055064277,0.21751,91950.0,91930.0,0.04346872]
[1732055064503,0.21751,91950.0,91942.0,0.032629]
[1732055064504,0.108758,91947.0,91942.0,0.032629]
[1732055064728,0.108758,91947.0,91924.0,0.0008546]
[1732055064729,0.26159805,91956.0,91926.0,0.043513]
[1732055064945,0.108752,91952.0,91947.0,0.032627]
[1732055066047,0.04410305,91956.0,91935.0,0.043508]
[1732055066254,0.108752,91952.0,91946.0,0.032627]
[1732055066480,0.108754,91951.0,91944.0,0.043504]
[1732055066681,0.108754,91951.0,91946.0,0.032627]
[1732055066883,0.10875,91954.0,91948.0,0.032626]
[1732055067134,0.217497,91955.0,91929.0,0.10906255]
[1732055067355,0.15430662,91957.0,91929.0,0.10906255]
[1732055067557,0.217497,91955.0,91947.0,0.032627]
[1732055067760,0.108752,91953.0,91947.0,0.032627]
[1732055067985,0.04524407,91957.0,91929.0,0.10906255]
[1732055068197,0.04524407,91957.0,91930.0,0.10906255]
[1732055068405,0.00171,91957.0,91953.0,0.032625]
[1732055070017,0.00171,91957.0,91954.0,0.043499]
[1732055070395,0.00171,91957.0,91933.0,0.002]
[1732055070605,0.00171,91957.0,91956.0,0.032624]
[1732055070805,0.00171,91957.0,91952.0,0.032625]
[1732055071005,0.00171,91957.0,91935.0,0.01]
[1732055071210,0.00171,91957.0,91956.0,0.032624]
[1732055071615,0.00171,91957.0,91951.0,0.043501]
[1732055071616,0.00171,91957.0,91955.0,0.032624]
[1732055071846,0.00171,91957.0,91951.0,0.043501]
[1732055072051,0.00171,91957.0,91955.0,0.032624]
[1732055072244,0.00171,91957.0,91956.0,0.032624]
[1732055077758,0.00171,91957.0,91951.0,0.043501]
[1732055077759,0.17395188,91970.0,91951.0,0.043501]
[1732055077938,0.0009971,91972.0,91944.0,0.043504]
[1732055077939,0.108733,91968.0,91963.0,0.032621]
[1732055078156,0.02030039,91967.0,91964.0,0.032621]
[1732055078357,0.02030039,91966.0,91964.0,0.032621]
[1732055078682,0.02030039,91965.0,91962.0,0.032622]
[1732055078864,0.02030039,91964.0,91962.0,0.032622]
[1732055079077,0.02030039,91963.0,91962.0,0.032622]
[1732055084625,0.02032487,91963.0,91962.0,0.032622]
[1732055085070,0.02032487,91963.0,91960.0,0.032622]
[1732055085291,0.02032487,91963.0,91948.0,0.0008548]
[1732055085292,0.0017096,91963.0,91962.0,0.032622]
[1732055092954,0.108728,91973.0,91969.0,0.032619]
[1732055093170,0.12551087,91974.0,91971.0,0.032618]
[1732055093171,0.02031959,91972.0,91971.0,0.032618]
[1732055093404,0.217459,91971.0,91949.0,0.032626]
[1732055093630,0.12938214,91970.0,91948.0,0.0008548]
[1732055093848,0.02031959,91969.0,91948.0,0.0008548]
[1732055094079,0.10906255,91970.0,91956.0,0.032623]
[1732055094080,0.108743,91960.0,91956.0,0.032623]
[1732055094303,0.32652955,91968.0,91949.0,0.032626]
[1732055094531,0.02032285,91967.0,91956.0,0.032624]
[1732055094779,0.108739,91963.0,91958.0,0.032623]
[1732055094988,0.108739,91963.0,91958.0,0.065246]
[1732055095198,0.02032351,91962.0,91958.0,0.065246]
[1732055095412,0.108739,91963.0,91958.0,0.065246]
[1732055095638,0.02032518,91962.0,91958.0,0.065246]
[1732055095845,0.02032518,91961.0,91958.0,0.032623]
[1732055096121,0.108739,91963.0,91958.0,0.032623]
[1732055096335,0.02032802,91962.0,91958.0,0.032623]
[1732055096539,0.108739,91963.0,91958.0,0.032623]
[1732055096717,0.02032786,91962.0,91958.0,0.032623]
[1732055096927,0.10874,91962.0,91958.0,0.032623]
[1732055097283,0.108737,91965.0,91961.0,0.032622]
[1732055097501,0.10874,91962.0,91957.0,0.032623]
[1732055097974,0.108739,91963.0,91958.0,0.032623]
[1732055098819,0.108739,91963.0,91957.0,0.032623]
[1732055099035,0.108739,91963.0,91959.0,0.032623]
[1732055099911,0.10906255,91967.0,91957.0,0.032623]
[1732055100112,0.10874,91962.0,91958.0,0.032623]
[1732055101206,0.10906255,91967.0,91953.0,0.032625]
[1732055101437,0.02033991,91966.0,91948.0,0.0334818]
[1732055101647,0.02033991,91966.0,91958.0,0.032623]
[1732055101648,0.02033991,91965.0,91958.0,0.032623]
[1732055101903,0.10874,91962.0,91958.0,0.032623]
[1732055102334,0.10874,91962.0,91958.0,0.065246]
[1732055102536,0.108739,91963.0,91958.0,0.032623]
[1732055102779,0.108739,91963.0,91959.0,0.032623]
[1732055103197,0.108737,91965.0,91960.0,0.032622]
[1732055103418,0.02034085,91964.0,91958.0,0.032623]
[1732055103624,0.108742,91961.0,91948.0,0.0334818]
[1732055103836,0.108742,91961.0,91956.0,0.032624]
[1732055104059,0.108742,91961.0,91948.0,0.0334818]
[1732055104060,0.108737,91965.0,91960.0,0.032622]
[1732055104314,0.02034077,91964.0,91960.0,0.032622]
[1732055104529,0.02034077,91964.0,91958.0,0.032623]
[1732055104530,0.108737,91965.0,91961.0,0.032622]
[1732055104752,0.108736,91966.0,91962.0,0.032622]
[1732055104990,0.1290776,91965.0,91959.0,0.032622]
[1732055105211,0.108737,91965.0,91959.0,0.032622]
[1732055105873,0.217466,91968.0,91959.0,0.032622]
[1732055106092,0.108741,91962.0,91958.0,0.032623]
[1732055106531,0.11077175,91970.0,91959.0,0.032623]
[1732055106532,0.02034165,91961.0,91959.0,0.032623]
[1732055106752,0.108739,91963.0,91959.0,0.032623]
[1732055107217,0.108737,91965.0,91960.0,0.032622]
[1732055107438,0.108738,91964.0,91958.0,0.032623]
[1732055107641,0.108738,91964.0,91959.0,0.032623]
[1732055107642,0.02034095,91963.0,91959.0,0.032623]
[1732055107855,0.217471,91966.0,91959.0,0.032623]
[1732055108063,0.32823475,91970.0,91958.0,0.032623]
[1732055108064,0.11077175,91970.0,91958.0,0.032623]
[1732055108282,0.11077175,91970.0,91959.0,0.032623]
[1732055108494,0.11077175,91970.0,91960.0,0.032622]
[1732055108908,0.11077175,91970.0,91961.0,0.032622]
[1732055109545,0.11077175,91970.0,91962.0,0.032622]
[1732055109752,0.11077175,91970.0,91963.0,0.032621]
[1732055109968,0.0017092,91970.0,91969.0,0.032619]
[1732055111769,0.0017092,91970.0,91969.0,0.15168155]
[1732055112204,0.0017092,91970.0,91969.0,0.32978155]
[1732055112408,0.0017092,91970.0,91969.0,0.53464168]
[1732055112623,0.0017092,91970.0,91969.0,0.33978155]
[1732055113316,0.001709,91974.0,91973.0,0.052618]
[1732055113518,0.001709,91974.0,91973.0,0.28468055]
[1732055114209,0.0017092,91983.0,91982.0,0.042615]
[1732055114456,0.0017092,91983.0,91982.0,0.15167755]
[1732055114656,0.0017092,91983.0,91982.0,0.3588044]
[1732055114880,0.0017092,91983.0,91982.0,0.26367755]
[1732055115115,0.0017092,91983.0,91982.0,0.40736782]
[1732055115323,0.0017092,91983.0,91982.0,0.26167755]
[1732055115538,0.0017092,91983.0,91982.0,0.26367755]
[1732055115757,0.0017092,91983.0,91982.0,0.28667755]
[1732055116448,2e-07,91983.0,91982.0,0.28667755]
[1732055116905,2e-07,91983.0,91982.0,0.38368855]
[1732055117161,2e-07,91983.0,91982.0,0.41467755]
[1732055118006,2e-07,91983.0,91982.0,0.60892823]
[1732055118227,0.0026968,92025.0,92024.0,0.0326]
[1732055118678,0.0017108,92025.0,92024.0,0.0326]
[1732055121410,0.0017108,92025.0,92024.0,0.15166255]
[1732055121621,0.0017108,92025.0,92024.0,0.16166255]
[1732055121831,0.0017108,92025.0,92024.0,0.16366255]
[1732055122703,8e-07,92025.0,92024.0,0.28666255]
[1732055122915,0.01126879,92064.0,92063.0,0.032586]
[1732055123379,0.04445614,92070.0,92065.0,0.032585]
[1732055125616,0.04445614,92070.0,92061.0,0.032586]
[1732055125845,0.04445614,92070.0,92065.0,0.032585]
[1732055126055,0.12375614,92070.0,92065.0,0.032585]
[1732055126911,0.048,92078.0,92065.0,0.032585]
[1732055127542,0.108605,92077.0,92065.0,0.032585]
[1732055128179,0.04343396,92073.0,92065.0,0.032585]
[1732055128392,0.217238,92065.0,92052.0,0.03259]
[1732055128603,4.1103246,92068.0,92057.0,0.032588]
[1732055128812,4.1103246,92068.0,92057.0,0.065176]
[1732055129023,0.0475,92064.0,92033.0,0.032596]
[1732055129279,0.108639,92048.0,92035.0,0.032596]
[1732055129485,0.10864,92047.0,92036.0,0.032595]
[1732055129706,0.10864,92047.0,92035.0,0.032596]
[1732055129922,0.217275,92050.0,92032.0,0.032597]
[1732055130129,0.10906255,92050.0,92020.0,0.10906255]
[1732055130371,0.217275,92049.0,92033.0,0.032596]
[1732055130574,0.108644,92043.0,92030.0,0.032597]
[1732055130781,0.217275,92049.0,92027.0,0.032598]
[1732055130991,0.108645,92043.0,92032.0,0.032597]
[1732055131216,0.325923,92046.0,92032.0,0.032597]
[1732055131471,0.09631932,92084.0,92020.0,0.10906255]
[1732055131472,0.23586255,92045.0,92025.0,0.032599]
[1732055131678,0.23586255,92045.0,92020.0,0.032601]
[1732055131679,0.108654,92035.0,92024.0,0.0326]
[1732055131887,0.108654,92035.0,92009.0,0.01]
[1732055131888,0.1,92043.0,92003.0,0.01]
[1732055132096,0.1,92043.0,92016.0,0.032602]
[1732055132097,0.108664,92027.0,92016.0,0.032602]
[1732055132332,0.10906255,92035.0,92006.0,0.10906255]
[1732055132541,0.217323,92029.0,92016.0,0.032602]
[1732055132792,0.108664,92027.0,92016.0,0.032602]
[1732055132992,0.108664,92027.0,92017.0,0.032602]
[1732055133202,0.21731,92034.0,92018.0,0.032602]
[1732055133203,0.108663,92028.0,92018.0,0.032602]
[1732055133422,0.217313,92033.0,92018.0,0.032602]
[1732055133423,0.108664,92027.0,92018.0,0.032602]
[1732055134064,0.108664,92027.0,92012.0,0.032604]
[1732055134065,0.217313,92033.0,92012.0,0.032604]
[1732055134304,0.11005645,92035.0,91992.0,0.1]
[1732055134305,0.10906255,92032.0,92007.0,0.032606]
[1732055134548,0.10906255,92032.0,91998.0,0.1]
[1732055134549,0.108677,92016.0,92006.0,0.032606]
[1732055134765,0.10906255,92032.0,92006.0,0.032606]
[1732055134994,0.108676,92017.0,92007.0,0.032605]
[1732055135236,0.217346,92019.0,92006.0,0.032606]
[1732055135484,0.108677,92016.0,92009.0,0.032605]
[1732055135917,0.217325,92028.0,91999.0,0.032608]
[1732055135918,0.0009895,92028.0,91999.0,0.032608]
[1732055136133,0.0009895,92028.0,91925.0,0.09624767]
[1732055136134,0.108699,91997.0,91976.0,0.01]
[1732055136359,0.108698,91998.0,91990.0,0.032612]
[1732055136574,0.10906255,92015.0,91989.0,0.032612]
[1732055136780,0.108698,91998.0,91991.0,0.032611]
[1732055136988,0.0009806,92009.0,91989.0,0.032612]
[1732055137200,0.108699,91997.0,91990.0,0.032612]
[1732055137458,0.108699,91997.0,91989.0,0.032612]
[1732055137699,0.108711,91987.0,91966.0,0.01]
[1732055137955,0.207674,92007.0,91982.0,0.0334694]
[1732055138162,0.108711,91987.0,91982.0,0.0334694]
[1732055138573,0.217416,91990.0,91982.0,0.0008544]
[1732055138753,0.108705,91992.0,91986.0,0.032613]
[1732055138982,0.10906255,92006.0,91984.0,0.032614]
[1732055139214,0.108708,91990.0,91984.0,0.032614]
[1732055139418,0.21741,91992.0,91982.0,0.0334684]
[1732055139622,0.108707,91990.0,91984.0,0.032614]
[1732055139827,0.217393,91999.0,91988.0,0.032612]
[1732055140079,0.0488,92000.0,91988.0,0.032612]
[1732055140283,0.0488,92000.0,91989.0,0.032612]
[1732055140284,0.108703,91994.0,91989.0,0.032612]
[1732055140713,0.217379,92005.0,91994.0,0.03261]
[1732055140920,0.23754068,92004.0,91996.0,0.032609]
[1732055141133,0.108693,92002.0,91997.0,0.032609]
[1732055141350,0.02015968,92001.0,91997.0,0.032609]
[1732055141556,0.0009806,92009.0,91997.0,0.032609]
[1732055141795,0.108691,92004.0,91998.0,0.032609]
[1732055142011,0.108691,92004.0,91997.0,0.032609]
[1732055142012,0.108691,92004.0,91999.0,0.032609]
[1732055142227,0.217372,92008.0,91996.0,0.03261]
[1732055142645,0.108693,92003.0,91998.0,0.032609]
[1732055143471,0.10869,92005.0,91998.0,0.032609]
[1732055143673,0.108689,92006.0,92001.0,0.032608]
[1732055143910,0.108689,92006.0,91989.0,0.032612]
[1732055143911,0.108691,92004.0,91999.0,0.032608]
[1732055144583,0.217362,92013.0,91999.0,0.032608]
[1732055144788,0.04435027,92014.0,92000.0,0.032608]
[1732055144789,0.23753308,92012.0,92000.0,0.032608]
[1732055145002,0.217375,92007.0,91985.0,0.0793]
[1732055145224,0.10869,92005.0,91999.0,0.032608]
[1732055145425,0.217348,92019.0,91988.0,0.002]
[1732055145692,0.04443844,92014.0,91990.0,0.10906255]
[1732055145885,0.108681,92013.0,91990.0,0.10906255]
[1732055146092,0.108681,92013.0,92008.0,0.032605]
[1732055146270,0.108677,92016.0,92010.0,0.032604]
[1732055146520,0.108678,92015.0,92010.0,0.032604]
[1732055146966,0.108678,92015.0,92010.0,0.065208]
[1732055147189,0.04517626,92019.0,92005.0,0.032606]
[1732055147412,0.1,92026.0,92021.0,0.032601]
[1732055147670,0.108677,92016.0,92009.0,0.032605]
[1732055147892,0.108674,92018.0,92012.0,0.032604]
[1732055148117,0.108674,92018.0,92013.0,0.032603]
[1732055148770,0.108672,92020.0,92014.0,0.032603]
[1732055149638,0.217336,92023.0,92012.0,0.032604]
[1732055149817,0.108679,92014.0,92007.0,0.032606]
[1732055150048,0.217332,92025.0,92009.0,0.032605]
[1732055150049,0.108678,92015.0,92009.0,0.032605]
[1732055150259,0.108678,92015.0,92007.0,0.032606]
[1732055150260,0.108678,92015.0,92010.0,0.032605]
[1732055150881,0.108678,92015.0,91983.0,0.01]
[1732055150882,0.10906255,92014.0,91990.0,0.0008534]
[1732055151093,0.108698,91998.0,91992.0,0.032611]
[1732055151305,0.108698,91998.0,91992.0,0.065222]
[1732055151478,0.108699,91997.0,91992.0,0.032611]
[1732055151741,0.0009996,92013.0,92004.0,0.032607]
[1732055151950,0.108686,92008.0,92004.0,0.032607]
[1732055152188,0.108686,92008.0,92002.0,0.032607]
[1732055152400,0.108686,92008.0,92003.0,0.032607]
[1732055153023,0.04420203,92020.0,92003.0,0.032607]
[1732055153255,0.108685,92009.0,92004.0,0.032607]
[1732055153945,0.108685,92009.0,92005.0,0.032606]
[1732055154597,0.108686,92008.0,92003.0,0.032607]
[1732055154823,0.10906255,92007.0,91995.0,0.03261]
[1732055155034,0.217377,92006.0,91996.0,0.032609]
[1732055155257,0.108695,92001.0,91997.0,0.032609]
[1732055155470,0.108692,92003.0,91997.0,0.032609]
[1732055155674,0.108692,92003.0,91996.0,0.032609]
[1732055155675,0.326072,92004.0,91998.0,0.032609]
[1732055155897,0.108693,92003.0,91998.0,0.032609]
[1732055156312,0.04420203,92020.0,91999.0,0.032608]
[1732055156533,0.108703,91994.0,91990.0,0.0008534]
[1732055156763,0.217404,91995.0,91990.0,0.0008534]
[1732055156986,0.108706,91991.0,91990.0,0.0008534]
[1732055157238,0.217404,91995.0,91990.0,0.0008534]
[1732055157474,0.108703,91994.0,91990.0,0.0008534]
[1732055157700,0.25064465,92012.0,91990.0,0.0008534]
[1732055157913,0.26164418,92011.0,91990.0,0.0008534]
[1732055158125,0.108703,91994.0,91990.0,0.0008534]
[1732055158332,0.02022367,91993.0,91990.0,0.0008534]
[1732055158567,0.217402,91996.0,91990.0,0.0008534]
[1732055158774,0.020242,91995.0,91990.0,0.0008534]
[1732055158985,0.217402,91996.0,91990.0,0.0008534]
[1732055158986,0.108704,91993.0,91990.0,0.0008534]
[1732055159198,0.128947,91992.0,91990.0,0.0008534]
[1732055159404,0.020242,91991.0,91990.0,0.0008534]
[1732055161412,0.128948,91991.0,91990.0,0.0008534]
[1732055161846,0.020242,91991.0,91990.0,0.0008534]
[1732055164771,0.128948,91991.0,91990.0,0.0008534]
[1732055165810,0.020242,91991.0,91942.0,0.023]
[1732055166058,0.108711,91987.0,91957.0,0.034623]
[1732055166313,0.217411,91992.0,91984.0,0.032614]
[1732055166314,0.326118,91991.0,91984.0,0.032614]
[1732055166520,0.217411,91992.0,91959.0,0.032623]
[1732055166521,0.0009997,91987.0,91973.0,0.032618]
[1732055166683,0.0009997,91987.0,91935.0,0.09651059]
[1732055166684,0.0465,91989.0,91974.0,0.032617]
[1732055166884,0.02030239,91988.0,91974.0,0.032617]
[1732055167083,0.108729,91972.0,91946.0,0.002]
[1732055167284,0.01,91981.0,91964.0,0.032621]
[1732055167506,0.03247671,91980.0,91964.0,0.032621]
[1732055167706,0.108731,91970.0,91964.0,0.032621]
[1732055167927,0.02,91981.0,91964.0,0.032621]
[1732055167928,0.217438,91980.0,91964.0,0.032621]
[1732055168139,0.108733,91968.0,91958.0,0.032623]
[1732055168344,0.01,91978.0,91956.0,0.032624]
[1732055168345,0.01,91972.0,91956.0,0.032624]
[1732055168550,0.01,91972.0,91955.0,0.032624]
[1732055168551,0.108744,91959.0,91955.0,0.032624]
[1732055168756,0.10874,91963.0,91957.0,0.032623]
[1732055168978,0.10906255,91977.0,91948.0,0.0008548]
[1732055168979,0.01,91967.0,91948.0,0.0008548]
[1732055169198,0.01,91963.0,91949.0,0.032626]
[1732055169401,0.01,91963.0,91948.0,0.0008548]
[1732055169403,0.217481,91962.0,91948.0,0.0008548]
[1732055169956,0.10875,91954.0,91949.0,0.032626]
[1732055170202,0.01,91961.0,91948.0,0.0008548]
[1732055170454,0.108749,91955.0,91949.0,0.032626]
[1732055170693,0.217488,91959.0,91948.0,0.0008548]
[1732055170889,0.01,91961.0,91949.0,0.032626]
[1732055171103,0.01,91961.0,91948.0,0.0008548]
[1732055171104,0.01,91952.0,91948.0,0.0008548]
[1732055171319,0.108755,91949.0,91948.0,0.0008548]
[1732055171523,0.01,91952.0,91948.0,0.0008548]
[1732055171704,0.108755,91949.0,91948.0,0.0008548]
[1732055172061,0.118755,91949.0,91948.0,0.0008548]
[1732055172934,0.166655,91949.0,91948.0,0.0008548]
[1732055174498,0.176655,91949.0,91948.0,0.0008548]
[1732055177259,0.19686235,91949.0,91948.0,0.0008548]
[1732055178181,0.18914535,91949.0,91948.0,0.0008548]
[1732055182835,0.09914535,91949.0,91948.0,0.0008548]
[1732055183051,0.19686235,91949.0,91948.0,0.0008548]
[1732055183292,0.19686236,91949.0,91948.0,0.0008548]
[1732055185433,0.63031427,91949.0,91948.0,0.0008548]
[1732055185665,0.251768,91938.0,91937.0,0.0008546]
[1732055185906,0.66516763,91938.0,91937.0,0.0008546]
[1732055186115,0.69817428,91938.0,91937.0,0.0008546]
[1732055186575,0.73544314,91938.0,91937.0,0.0008546]
[1732055189920,0.53835176,91938.0,91937.0,0.0008546]
[1732055190125,0.66516763,91938.0,91937.0,0.0008546]
[1732055190558,0.71036868,91938.0,91937.0,0.0008546]
[1732055190779,0.68736868,91938.0,91937.0,0.0008546]
[1732055192115,0.68736868,91938.0,91937.0,0.0114546]
[1732055193427,0.70094726,91938.0,91937.0,0.0114546]
[1732055193864,0.68736868,91938.0,91937.0,0.0114546]
[1732055194067,0.71036868,91938.0,91937.0,0.0114546]
[1732055194282,0.7239472,91938.0,91937.0,0.0114546]
[1732055195451,0.74337533,91938.0,91937.0,0.0114546]
[1732055195669,0.71036868,91938.0,91937.0,0.0114546]
[1732055196290,0.72399574,91938.0,91937.0,0.0114546]
[1732055196755,0.75634618,91938.0,91937.0,0.0114546]
[1732055197196,0.72399574,91938.0,91937.0,0.0114546]
[1732055197445,0.72399574,91938.0,91931.0,0.0012549]
[1732055197446,0.251776,91932.0,91931.0,0.0012549]
[1732055197660,0.42698682,91932.0,91931.0,0.0012549]
[1732055197865,0.31821082,91932.0,91931.0,0.0012549]
[1732055198034,0.42698682,91932.0,91931.0,0.0012549]
[1732055199388,1.01171865,91932.0,91931.0,9e-07]
[1732055199769,0.151798,91913.0,91912.0,0.0008551]
[1732055199984,0.42700882,91913.0,91912.0,0.0008551]
[1732055200624,0.41343001,91913.0,91912.0,0.0008551]
[1732055200853,0.42701138,91913.0,91912.0,0.0008551]
[1732055203066,0.4269858,91913.0,91912.0,0.0008551]
[1732055203314,0.40607285,91913.0,91912.0,0.0008551]
[1732055203515,0.47219813,91913.0,91912.0,0.0008551]
[1732055206384,0.45861636,91913.0,91912.0,0.0008551]
[1732055209728,0.45860288,91913.0,91912.0,0.0008551]
[1732055210390,0.44860288,91913.0,91912.0,0.0008551]
[1732055213053,0.41563492,91913.0,91912.0,0.0008551]
[1732055214523,0.42921701,91913.0,91912.0,0.0008551]
[1732055214910,0.4285909,91913.0,91912.0,0.0008551]
[1732055215139,0.5538909,91913.0,91912.0,0.0008551]
[1732055215367,0.65929485,91913.0,91912.0,0.0008551]
[1732055215580,0.65935637,91913.0,91912.0,0.0008551]
[1732055215801,0.69173979,91913.0,91912.0,0.0008551]
[1732055216012,0.65935637,91913.0,91912.0,0.0008551]
[1732055216216,0.69174032,91913.0,91912.0,0.0008551]
[1732055216415,0.69175761,91913.0,91912.0,0.0008551]
[1732055216673,0.65936755,91913.0,91912.0,0.0008551]
[1732055218700,0.66936755,91913.0,91912.0,0.0008551]
[1732055219777,0.66937127,91913.0,91912.0,0.0008551]
[1732055220573,0.55396732,91913.0,91912.0,0.0008551]
[1732055220755,0.32929343,91913.0,91912.0,0.0008551]
[1732055222008,0.42929343,91913.0,91912.0,0.0008551]
[1732055224377,0.41571042,91913.0,91912.0,0.0008551]
[1732055225272,0.36307285,91913.0,91912.0,0.0008551]
[1732055225497,0.41575986,91913.0,91912.0,0.0008551]
[1732055227984,0.30669731,91913.0,91912.0,0.0008551]
[1732055228400,0.41575986,91913.0,91912.0,0.0008551]
[1732055229407,0.06547653,91913.0,91912.0,0.0334941]
[1732055229811,0.0452123,91913.0,91912.0,0.1131941]
[1732055230050,0.1114739,91931.0,91912.0,0.0805551]
[1732055230262,0.1114739,91931.0,91925.0,0.032635]
[1732055230436,0.02029594,91930.0,91925.0,0.032635]
[1732055230798,0.0026969,91931.0,91925.0,0.032635]
[1732055230799,0.04672414,91931.0,91930.0,0.032633]
[1732055231243,0.0017094,91931.0,91930.0,0.032633]
[1732055232129,0.0017094,91931.0,91930.0,0.112333]
[1732055237244,0.0017094,91931.0,91930.0,0.10563383]
[1732055239286,0.0017094,91931.0,91930.0,0.21469638]
[1732055242854,0.06873568,91957.0,91930.0,0.18876255]
[1732055243109,0.09690053,91994.0,91930.0,0.18876255]
[1732055243110,0.1009972,91961.0,91930.0,0.18876255]
[1732055243331,0.108746,91957.0,91949.0,0.032626]
[1732055243536,0.14485823,91961.0,91949.0,0.032626]
[1732055243731,0.14485823,91961.0,91950.0,0.032626]
[1732055243953,0.108747,91957.0,91950.0,0.032626]
[1732055244603,0.108747,91957.0,91951.0,0.032625]
[1732055245406,0.108747,91957.0,91949.0,0.032626]
[1732055245616,0.1,91960.0,91932.0,0.032632]
[1732055245816,0.108745,91958.0,91952.0,0.032625]
[1732055246057,0.108745,91959.0,91952.0,0.032625]
[1732055246225,0.1,91960.0,91951.0,0.032625]
[1732055246431,0.108746,91957.0,91951.0,0.032625]
[1732055246767,0.14386103,91961.0,91946.0,0.032627]
[1732055246972,0.108751,91953.0,91948.0,0.032627]
[1732055247391,0.10906255,91960.0,91949.0,0.032626]
[1732055247600,0.10906255,91960.0,91946.0,0.032627]
[1732055247801,0.10906255,91960.0,91949.0,0.032626]
[1732055248016,0.10906255,91960.0,91950.0,0.032626]
[1732055248374,0.10906255,91960.0,91955.0,0.032624]
[1732055248602,0.10906255,91960.0,91938.0,0.03263]
[1732055248828,0.10906255,91960.0,91957.0,0.032623]
[1732055249224,0.10906255,91960.0,91955.0,0.032624]
[1732055249391,0.10906255,91960.0,91957.0,0.032623]
[1732055250005,0.20906255,91960.0,91959.0,0.032623]
[1732055250210,0.20906255,91960.0,91957.0,0.032623]
[1732055250419,0.1,91960.0,91958.0,0.032623]
[1732055250617,0.1,91960.0,91959.0,0.032623]
[1732055251045,0.04434656,91962.0,91961.0,0.032622]
[1732055251367,0.1,91966.0,91962.0,0.032622]
[1732055251580,0.1,91963.0,91962.0,0.032622]
[1732055254280,0.1017094,91963.0,91962.0,0.032622]
[1732055256403,0.0017094,91963.0,91962.0,0.032622]
[1732055257819,0.03679948,91976.0,91975.0,0.032617]
[1732055258028,0.0786,91986.0,91979.0,0.032616]
[1732055258258,0.03514412,92000.0,91952.0,0.0491]
[1732055258259,0.032623,91988.0,91987.0,0.032613]
[1732055258479,0.0202427,91988.0,91987.0,0.032613]
[1732055258691,0.0786,91994.0,91993.0,0.032611]
[1732055258911,0.20789445,91994.0,91993.0,0.032611]
[1732055259324,0.24028355,91994.0,91993.0,0.032611]
[1732055259531,0.30789445,91994.0,91993.0,0.032611]
[1732055260965,0.35739445,91994.0,91993.0,0.032611]
[1732055261165,0.2483319,91994.0,91993.0,0.032611]
[1732055261796,0.24833293,91994.0,91993.0,0.032611]
[1732055262238,0.27012422,91994.0,91993.0,0.032611]
[1732055262481,0.1,91993.0,91992.0,0.032611]
[1732055262852,0.1,91993.0,91985.0,0.032613]
[1732055262853,0.22929548,91993.0,91985.0,0.032613]
[1732055263066,0.22929548,91993.0,91983.0,0.032614]
[1732055263067,0.12929548,91992.0,91983.0,0.032614]
[1732055263278,0.02023293,91991.0,91962.0,0.0776]
[1732055263505,0.12929548,91990.0,91987.0,0.032613]
[1732055263712,0.02023293,91989.0,91985.0,0.032613]
[1732055263934,0.02023293,91988.0,91980.0,0.032615]
[1732055264182,0.02023293,91987.0,91985.0,0.032613]
[1732055264395,0.10906255,91989.0,91986.0,0.032613]
[1732055264605,0.02022069,91988.0,91984.0,0.065228]
[1732055264824,0.02022069,91987.0,91982.0,0.032614]
[1732055265037,0.10906255,91989.0,91985.0,0.032613]
[1732055265270,0.02022038,91986.0,91985.0,0.032613]
[1732055265492,0.02022059,91988.0,91985.0,0.032613]
[1732055265723,0.02022059,91986.0,91985.0,0.032613]
[1732055265950,0.02022059,91986.0,91982.0,0.032614]
[1732055266197,0.02022059,91986.0,91985.0,0.032614]
[1732055266775,0.02022059,91986.0,91980.0,0.032615]
[1732055266992,0.02022059,91985.0,91984.0,0.032614]
[1732055268250,0.02022059,91985.0,91957.0,0.0334774]
[1732055268451,0.0017088,91988.0,91982.0,0.032614]
[1732055268452,0.02022059,91984.0,91982.0,0.032614]
[1732055268605,0.02022059,91983.0,91982.0,0.032614]
[1732055268812,0.02021202,91983.0,91982.0,0.032614]
[1732055271192,0.10906255,91987.0,91982.0,0.032614]
[1732055271419,0.02021831,91986.0,91984.0,0.032614]
[1732055271667,0.02021831,91985.0,91984.0,0.032614]
[1732055272113,0.02021831,91985.0,91982.0,0.065228]
[1732055272301,0.10906255,91987.0,91984.0,0.032614]
[1732055272512,0.02022102,91986.0,91984.0,0.032614]
[1732055272720,0.02022102,91985.0,91984.0,0.032614]
[1732055272903,0.0017088,91988.0,91952.0,0.0511]
[1732055273134,0.0017088,91988.0,91985.0,0.032613]
[1732055273794,0.0017088,91988.0,91980.0,0.032615]
[1732055273795,0.0017088,91988.0,91984.0,0.032614]
[1732055274222,0.0017088,91988.0,91987.0,0.032613]
[1732055276154,0.0017088,91988.0,91984.0,0.032614]
[1732055276608,0.0017088,91988.0,91987.0,0.032613]
[1732055284142,0.0017088,91988.0,91987.0,0.021742]
[1732055288177,0.082708,92008.0,92003.0,0.021738]
[1732055288393,0.082708,92008.0,92005.0,0.021737]
[1732055288394,0.0009914,92006.0,92005.0,0.021737]